[Event "*** Titled Tuesday Blitz"]
[Site "Chess.com"]
[Date "2020.02.04"]
[Round "2"]
[White "gemarin"]
[Black "mortngabriel"]
[Result "0-1"]
[WhiteElo "2082"]
[BlackElo "2427"]
[TimeControl "180+2"]
[EndTime "13:23:06 PST"]
[Termination "mortngabriel won by checkmate"]

1. d4 {[%clk 0:03:01.9]} 1... Nf6 {[%clk 0:03:01]} 2. c4 {[%clk 0:03:02.7]} 2...
e6 {[%clk 0:03:02.4]} 3. Nf3 {[%clk 0:03:01.7]} 3... b6 {[%clk 0:03:03.2]} 4. g3
{[%clk 0:02:57.7]} 4... Ba6 {[%clk 0:03:04.4]} 5. b3 {[%clk 0:02:57.7]} 5... Bb7
{[%clk 0:03:01.5]} 6. Bg2 {[%clk 0:02:58.5]} 6... c5 {[%clk 0:03:03.4]} 7. dxc5
{[%clk 0:02:49.4]} 7... bxc5 {[%clk 0:02:58.5]} 8. O-O {[%clk 0:02:49.9]} 8...
Be7 {[%clk 0:02:58.4]} 9. Bb2 {[%clk 0:02:48.9]} 9... O-O {[%clk 0:02:59.1]} 10.
Qc2 {[%clk 0:02:47.7]} 10... Nc6 {[%clk 0:02:58.3]} 11. Ng5 {[%clk 0:02:41]}
11... Nb4 {[%clk 0:02:38.7]} 12. Qc1 {[%clk 0:02:32.7]} 12... Bxg2 {[%clk
0:02:38.7]} 13. Kxg2 {[%clk 0:02:33.4]} 13... h6 {[%clk 0:02:32.5]} 14. Nf3
{[%clk 0:02:33.5]} 14... Qb6 {[%clk 0:02:21.1]} 15. Nc3 {[%clk 0:02:33.2]} 15...
Rfd8 {[%clk 0:02:18.7]} 16. Na4 {[%clk 0:02:16.3]} 16... Qb7 {[%clk 0:02:17.9]}
17. Rd1 {[%clk 0:02:16.3]} 17... Rac8 {[%clk 0:02:09.8]} 18. Qc3 {[%clk
0:02:13.4]} 18... d5 {[%clk 0:01:51.3]} 19. cxd5 {[%clk 0:02:11.6]} 19... exd5
{[%clk 0:01:53.2]} 20. a3 {[%clk 0:02:09.9]} 20... d4 {[%clk 0:01:51]} 21. Qc4
{[%clk 0:02:08.1]} 21... Nbd5 {[%clk 0:01:46.6]} 22. Rac1 {[%clk 0:01:57.6]}
22... Ng4 {[%clk 0:01:23.9]} 23. Kg1 {[%clk 0:01:54.6]} 23... Re8 {[%clk
0:01:04.4]} 24. h3 {[%clk 0:01:54.5]} 24... Ngf6 {[%clk 0:01:04.4]} 25. Ne5
{[%clk 0:01:42.5]} 25... Bd6 {[%clk 0:01:02.1]} 26. Nd3 {[%clk 0:01:43.1]} 26...
Ne4 {[%clk 0:01:00]} 27. b4 {[%clk 0:01:33.7]} 27... Nxf2 {[%clk 0:00:23.1]} 28.
Nxf2 {[%clk 0:01:12.4]} 28... Ne3 {[%clk 0:00:23.8]} 29. Qd3 {[%clk 0:01:12.5]}
29... Qg2# {[%clk 0:00:23.9]} 0-1

[Event "*** Titled Tuesday Blitz"]
[Site "Chess.com"]
[Date "2020.02.04"]
[Round "2"]
[White "Vuk2000"]
[Black "r31415"]
[Result "1-0"]
[WhiteElo "2679"]
[BlackElo "2377"]
[TimeControl "180+2"]
[EndTime "13:23:21 PST"]
[Termination "Vuk2000 won by resignation"]

1. d4 {[%clk 0:03:01.9]} 1... d6 {[%clk 0:03:00.5]} 2. Bg5 {[%clk 0:03:02.5]}
2... g6 {[%clk 0:03:00]} 3. e4 {[%clk 0:03:03.3]} 3... c6 {[%clk 0:02:58.3]} 4.
Nf3 {[%clk 0:03:03.7]} 4... Nf6 {[%clk 0:02:57.5]} 5. Bxf6 {[%clk 0:03:01.4]}
5... exf6 {[%clk 0:02:58.4]} 6. Bd3 {[%clk 0:03:01.6]} 6... Bg4 {[%clk
0:02:51.2]} 7. Nbd2 {[%clk 0:03:00.1]} 7... Bh6 {[%clk 0:02:32.9]} 8. c3 {[%clk
0:02:45.5]} 8... O-O {[%clk 0:02:27.9]} 9. Qb3 {[%clk 0:02:45.3]} 9... Bc8
{[%clk 0:02:06]} 10. h4 {[%clk 0:02:39.4]} 10... Nd7 {[%clk 0:01:37.6]} 11. h5
{[%clk 0:02:37.5]} 11... Bg7 {[%clk 0:01:38.2]} 12. hxg6 {[%clk 0:02:34.1]}
12... hxg6 {[%clk 0:01:39.4]} 13. O-O-O {[%clk 0:02:22.7]} 13... Qb6 {[%clk
0:01:37.5]} 14. Qc2 {[%clk 0:02:21.9]} 14... Re8 {[%clk 0:01:33.4]} 15. Bc4
{[%clk 0:02:15.8]} 15... Nf8 {[%clk 0:01:32.9]} 16. Bb3 {[%clk 0:02:07.8]} 16...
a5 {[%clk 0:01:31.9]} 17. Nc4 {[%clk 0:01:51.4]} 17... Qc7 {[%clk 0:01:32.2]}
18. Ne3 {[%clk 0:01:52.6]} 18... b5 {[%clk 0:01:26.2]} 19. a3 {[%clk 0:01:52.7]}
19... Ne6 {[%clk 0:00:56.3]} 20. d5 {[%clk 0:01:35.1]} 20... Nc5 {[%clk
0:00:55.9]} 21. dxc6 {[%clk 0:01:36]} 21... Nxb3+ {[%clk 0:00:53.8]} 22. Qxb3
{[%clk 0:01:36.7]} 22... Qxc6 {[%clk 0:00:55.7]} 23. Nd5 {[%clk 0:01:36.8]}
23... Rxe4 {[%clk 0:00:41.2]} 24. Nd4 {[%clk 0:01:36.2]} 24... Qc5 {[%clk
0:00:41.2]} 25. Qxb5 {[%clk 0:01:29]} 25... Be6 {[%clk 0:00:20.6]} 26. Nxe6
{[%clk 0:01:14.5]} 26... fxe6 {[%clk 0:00:02.5]} 27. Ne7+ {[%clk 0:01:05.2]}
27... Kf8 {[%clk 0:00:03.1]} 28. Nxg6+ {[%clk 0:01:02.2]} 28... Kf7 {[%clk
0:00:04.4]} 29. Qb7+ {[%clk 0:01:03.9]} 29... Kxg6 {[%clk 0:00:05.8]} 30. Qxe4+
{[%clk 0:01:05]} 1-0

[Event "*** Titled Tuesday Blitz"]
[Site "Chess.com"]
[Date "2020.02.04"]
[Round "2"]
[White "Slovak_fighter2000"]
[Black "PawnEatingZombie"]
[Result "1-0"]
[WhiteElo "2517"]
[BlackElo "2300"]
[TimeControl "180+2"]
[EndTime "13:23:25 PST"]
[Termination "Slovak_fighter2000 won by checkmate"]

1. d4 {[%clk 0:03:01.9]} 1... d5 {[%clk 0:03:00.6]} 2. Nf3 {[%clk 0:02:56.9]}
2... e6 {[%clk 0:03:01]} 3. Bf4 {[%clk 0:02:57.2]} 3... Bd6 {[%clk 0:03:00.4]}
4. Bg3 {[%clk 0:02:57.4]} 4... c5 {[%clk 0:02:57.4]} 5. e3 {[%clk 0:02:57.5]}
5... Nf6 {[%clk 0:02:57.7]} 6. c3 {[%clk 0:02:58.2]} 6... Qc7 {[%clk 0:02:58.8]}
7. Nbd2 {[%clk 0:02:58.1]} 7... Nbd7 {[%clk 0:02:59.8]} 8. Bd3 {[%clk
0:02:59.1]} 8... b6 {[%clk 0:03:00.2]} 9. e4 {[%clk 0:02:58.4]} 9... Bxg3 {[%clk
0:02:59.4]} 10. hxg3 {[%clk 0:02:58.8]} 10... dxe4 {[%clk 0:02:58.7]} 11. Nxe4
{[%clk 0:03:00.7]} 11... Bb7 {[%clk 0:02:54.3]} 12. Qe2 {[%clk 0:03:00.9]} 12...
h6 {[%clk 0:02:42.9]} 13. Rd1 {[%clk 0:02:56.7]} 13... O-O {[%clk 0:02:23.2]}
14. Qe3 {[%clk 0:02:49.4]} 14... Nxe4 {[%clk 0:02:19.3]} 15. Bxe4 {[%clk
0:02:51.3]} 15... Bxe4 {[%clk 0:02:19.9]} 16. Qxe4 {[%clk 0:02:49.2]} 16... Nf6
{[%clk 0:02:21.1]} 17. Qe3 {[%clk 0:02:38.5]} 17... cxd4 {[%clk 0:02:18.8]} 18.
Rxd4 {[%clk 0:02:33]} 18... Rfd8 {[%clk 0:02:14.3]} 19. Rf4 {[%clk 0:02:31]}
19... Nd5 {[%clk 0:02:07]} 20. Qe4 {[%clk 0:02:30.8]} 20... Nxf4 {[%clk
0:02:05.2]} 21. gxf4 {[%clk 0:02:32.7]} 21... Qd6 {[%clk 0:02:00.4]} 22. Nd4
{[%clk 0:02:27]} 22... Qd5 {[%clk 0:01:54.2]} 23. Qxd5 {[%clk 0:02:23.9]} 23...
Rxd5 {[%clk 0:01:54.5]} 24. O-O {[%clk 0:02:22.3]} 24... a6 {[%clk 0:01:52]} 25.
g3 {[%clk 0:02:21.5]} 25... Kf8 {[%clk 0:01:49.5]} 26. Kg2 {[%clk 0:02:22]}
26... Rc8 {[%clk 0:01:48.4]} 27. Re1 {[%clk 0:02:21.8]} 27... b5 {[%clk
0:01:49.2]} 28. a3 {[%clk 0:02:22]} 28... a5 {[%clk 0:01:45.8]} 29. Re2 {[%clk
0:02:21.7]} 29... b4 {[%clk 0:01:45.3]} 30. axb4 {[%clk 0:02:23.6]} 30... axb4
{[%clk 0:01:46]} 31. Re3 {[%clk 0:02:24.8]} 31... g6 {[%clk 0:01:46]} 32. Kf3
{[%clk 0:02:20.3]} 32... h5 {[%clk 0:01:45.9]} 33. Ke2 {[%clk 0:02:20.3]} 33...
bxc3 {[%clk 0:01:38.4]} 34. bxc3 {[%clk 0:02:20.3]} 34... Kg7 {[%clk 0:01:28.3]}
35. Nf3 {[%clk 0:02:16.8]} 35... Rdc5 {[%clk 0:01:22.3]} 36. Kd2 {[%clk
0:02:16.8]} 36... Ra8 {[%clk 0:01:22.2]} 37. Nd4 {[%clk 0:02:04.6]} 37... Ra2+
{[%clk 0:01:20.6]} 38. Ke1 {[%clk 0:02:06]} 38... Rc8 {[%clk 0:01:11]} 39. Ne2
{[%clk 0:02:01.9]} 39... Rb8 {[%clk 0:01:10.5]} 40. Kf1 {[%clk 0:02:01.6]} 40...
Rbb2 {[%clk 0:01:10.2]} 41. Re4 {[%clk 0:02:00.1]} 41... Kf6 {[%clk 0:01:10.1]}
42. Re3 {[%clk 0:01:58.9]} 42... Kf5 {[%clk 0:01:05.7]} 43. Re5+ {[%clk
0:01:54.1]} 43... Kg4 {[%clk 0:00:50.8]} 44. Kg2 {[%clk 0:01:53.9]} 44... Rxe2
{[%clk 0:00:16.6]} 45. Rg5# {[%clk 0:01:52.7]} 1-0

[Event "*** Titled Tuesday Blitz"]
[Site "Chess.com"]
[Date "2020.02.04"]
[Round "2"]
[White "Fortitudine"]
[Black "hypert"]
[Result "0-1"]
[WhiteElo "2221"]
[BlackElo "2473"]
[TimeControl "180+2"]
[EndTime "13:23:26 PST"]
[Termination "hypert won by resignation"]

1. d4 {[%clk 0:03:01.9]} 1... Nf6 {[%clk 0:03:00.8]} 2. Nc3 {[%clk 0:03:02.3]}
2... d5 {[%clk 0:03:01.4]} 3. Bg5 {[%clk 0:03:03.3]} 3... Nbd7 {[%clk
0:03:02.2]} 4. Nf3 {[%clk 0:03:03.7]} 4... h6 {[%clk 0:03:00.5]} 5. Bh4 {[%clk
0:03:04.4]} 5... e6 {[%clk 0:03:01.2]} 6. Bxf6 {[%clk 0:03:00.8]} 6... Nxf6
{[%clk 0:03:01.5]} 7. e3 {[%clk 0:03:01.3]} 7... Bb4 {[%clk 0:03:00.4]} 8. Nd2
{[%clk 0:02:58.5]} 8... c5 {[%clk 0:02:58.7]} 9. a3 {[%clk 0:02:55.4]} 9... cxd4
{[%clk 0:02:51.7]} 10. Bb5+ {[%clk 0:02:50.4]} 10... Bd7 {[%clk 0:02:48]} 11.
Bxd7+ {[%clk 0:02:49.1]} 11... Qxd7 {[%clk 0:02:46.4]} 12. axb4 {[%clk
0:02:42.5]} 12... dxc3 {[%clk 0:02:47.1]} 13. bxc3 {[%clk 0:02:44.4]} 13... O-O
{[%clk 0:02:47.7]} 14. O-O {[%clk 0:02:44.5]} 14... Rfc8 {[%clk 0:02:48.5]} 15.
Ra3 {[%clk 0:02:45.3]} 15... a6 {[%clk 0:02:44.2]} 16. Qe2 {[%clk 0:02:38.9]}
16... Rab8 {[%clk 0:02:32.9]} 17. h3 {[%clk 0:02:35.3]} 17... Rc7 {[%clk
0:02:33.9]} 18. Rb1 {[%clk 0:02:32.6]} 18... Rbc8 {[%clk 0:02:34.8]} 19. b5
{[%clk 0:02:26.4]} 19... axb5 {[%clk 0:02:27.8]} 20. Qxb5 {[%clk 0:02:26.2]}
20... Qxb5 {[%clk 0:02:26.5]} 21. Rxb5 {[%clk 0:02:28.1]} 21... Rxc3 {[%clk
0:02:26.4]} 22. Rxc3 {[%clk 0:02:27.1]} 22... Rxc3 {[%clk 0:02:28.3]} 23. Rb2
{[%clk 0:02:11.5]} 23... g5 {[%clk 0:02:27.4]} 24. Kf1 {[%clk 0:02:12.1]} 24...
Kg7 {[%clk 0:02:21.1]} 25. Ke2 {[%clk 0:02:11.5]} 25... Kg6 {[%clk 0:02:20.9]}
26. f3 {[%clk 0:02:11.2]} 26... Ne8 {[%clk 0:02:15.2]} 27. e4 {[%clk 0:01:49.9]}
27... Nf6 {[%clk 0:02:09.5]} 28. Rxb7 {[%clk 0:00:37.2]} 28... dxe4 {[%clk
0:02:03.1]} 29. fxe4 {[%clk 0:00:31.7]} 29... Rxc2 {[%clk 0:02:03.7]} 30. Kd3
{[%clk 0:00:28.2]} 30... Rc5 {[%clk 0:02:01.4]} 31. Nf3 {[%clk 0:00:16.4]} 31...
Ra5 {[%clk 0:01:57.2]} 32. Ke3 {[%clk 0:00:12.7]} 32... Ra3+ {[%clk 0:01:56.2]}
33. Ke2 {[%clk 0:00:07.3]} 33... Nxe4 {[%clk 0:01:54.3]} 34. Ne5+ {[%clk
0:00:08.1]} 34... Kf5 {[%clk 0:01:51.6]} 35. Nxf7 {[%clk 0:00:09.1]} 35... Kf4
{[%clk 0:01:50.3]} 36. Nxh6 {[%clk 0:00:02.9]} 36... Ra2+ {[%clk 0:01:49.9]} 37.
Kd3 {[%clk 0:00:04.1]} 37... Nc5+ {[%clk 0:01:49.8]} 0-1

[Event "*** Titled Tuesday Blitz"]
[Site "Chess.com"]
[Date "2020.02.04"]
[Round "2"]
[White "SantoBlue"]
[Black "AleksanderHnydiuk"]
[Result "1-0"]
[WhiteElo "2830"]
[BlackElo "2557"]
[TimeControl "180+2"]
[EndTime "13:23:30 PST"]
[Termination "SantoBlue won by resignation"]

1. e4 {[%clk 0:02:32.1]} 1... Nf6 {[%clk 0:02:56.3]} 2. e5 {[%clk 0:02:32.7]}
2... Nd5 {[%clk 0:02:57.4]} 3. d4 {[%clk 0:02:34.6]} 3... d6 {[%clk 0:02:58.3]}
4. c4 {[%clk 0:02:35.2]} 4... Nb6 {[%clk 0:02:59.1]} 5. exd6 {[%clk 0:02:33.5]}
5... exd6 {[%clk 0:03:00.1]} 6. Nc3 {[%clk 0:02:34.2]} 6... Be7 {[%clk
0:03:00.5]} 7. Bd3 {[%clk 0:02:35.8]} 7... Nc6 {[%clk 0:02:56.5]} 8. Nge2 {[%clk
0:02:36.9]} 8... Bg4 {[%clk 0:02:56.7]} 9. f3 {[%clk 0:02:37.2]} 9... Bh5 {[%clk
0:02:57.6]} 10. Nf4 {[%clk 0:02:38.3]} 10... Bg6 {[%clk 0:02:57.3]} 11. Nxg6
{[%clk 0:02:39.4]} 11... hxg6 {[%clk 0:02:58.6]} 12. Be3 {[%clk 0:02:39.4]}
12... Bh4+ {[%clk 0:02:57.3]} 13. Kf1 {[%clk 0:02:36.3]} 13... O-O {[%clk
0:02:53.5]} 14. g3 {[%clk 0:02:33.1]} 14... Bf6 {[%clk 0:02:51.8]} 15. h4 {[%clk
0:02:29.9]} 15... Re8 {[%clk 0:02:45.4]} 16. Ne4 {[%clk 0:02:26.6]} 16... Bxd4
{[%clk 0:02:42.8]} 17. Bxd4 {[%clk 0:02:27]} 17... Nxd4 {[%clk 0:02:44.7]} 18.
h5 {[%clk 0:02:28.9]} 18... d5 {[%clk 0:02:39.1]} 19. cxd5 {[%clk 0:02:03.3]}
19... Nxd5 {[%clk 0:02:39.7]} 20. Qd2 {[%clk 0:02:03]} 20... g5 {[%clk
0:02:23.7]} 21. h6 {[%clk 0:02:01.6]} 21... Nxf3 {[%clk 0:02:06.4]} 22. Qf2
{[%clk 0:01:58.8]} 22... Nb4 {[%clk 0:01:48.1]} 23. Rd1 {[%clk 0:01:50.9]} 23...
Rxe4 {[%clk 0:01:32.3]} 24. Qxf3 {[%clk 0:01:38.6]} 24... Rd4 {[%clk 0:01:27.6]}
25. hxg7 {[%clk 0:01:36.1]} 25... Rxd3 {[%clk 0:00:37]} 26. Rxd3 {[%clk
0:01:34.8]} 26... Qxd3+ {[%clk 0:00:36.8]} 27. Qxd3 {[%clk 0:01:35.8]} 27...
Nxd3 {[%clk 0:00:38.7]} 28. Rh8+ {[%clk 0:01:37.7]} 28... Kxg7 {[%clk
0:00:39.8]} 29. Rxa8 {[%clk 0:01:39.6]} 29... a6 {[%clk 0:00:15.9]} 30. Ra7
{[%clk 0:01:38.6]} 30... b5 {[%clk 0:00:12.3]} 31. b3 {[%clk 0:01:36.2]} 31...
c5 {[%clk 0:00:12.4]} 32. Rxa6 {[%clk 0:01:37]} 32... c4 {[%clk 0:00:12.2]} 33.
bxc4 {[%clk 0:01:37.4]} 33... bxc4 {[%clk 0:00:14.1]} 34. Rc6 {[%clk 0:01:37.6]}
1-0

[Event "*** Titled Tuesday Blitz"]
[Site "Chess.com"]
[Date "2020.02.04"]
[Round "2"]
[White "HashtagChess"]
[Black "Barcelona_Guy"]
[Result "0-1"]
[WhiteElo "1621"]
[BlackElo "2642"]
[TimeControl "180+2"]
[EndTime "13:23:30 PST"]
[Termination "Barcelona_Guy won by resignation"]

1. e4 {[%clk 0:03:01.9]} 1... e5 {[%clk 0:02:59.4]} 2. Nf3 {[%clk 0:03:02.3]}
2... d6 {[%clk 0:03:00.8]} 3. d4 {[%clk 0:03:02.2]} 3... exd4 {[%clk 0:03:02.7]}
4. Nxd4 {[%clk 0:03:03]} 4... Nf6 {[%clk 0:03:04.2]} 5. Nc3 {[%clk 0:03:03.5]}
5... Be7 {[%clk 0:03:05.7]} 6. Bc4 {[%clk 0:02:58.9]} 6... O-O {[%clk
0:03:06.7]} 7. O-O {[%clk 0:02:59.6]} 7... Re8 {[%clk 0:03:08.1]} 8. f4 {[%clk
0:02:39.1]} 8... Bf8 {[%clk 0:03:09.1]} 9. Bd3 {[%clk 0:02:22.3]} 9... Nbd7
{[%clk 0:03:08.8]} 10. Qf3 {[%clk 0:02:18.9]} 10... Nc5 {[%clk 0:03:09.3]} 11.
Bd2 {[%clk 0:02:00.5]} 11... g6 {[%clk 0:02:42.6]} 12. f5 {[%clk 0:01:50.1]}
12... Bg7 {[%clk 0:02:43.4]} 13. fxg6 {[%clk 0:01:27.2]} 13... fxg6 {[%clk
0:02:27.2]} 14. Bg5 {[%clk 0:01:28.2]} 14... Rf8 {[%clk 0:02:09.3]} 15. Bc4+
{[%clk 0:01:16.5]} 15... Kh8 {[%clk 0:02:03.1]} 16. b4 {[%clk 0:01:17.4]} 16...
h6 {[%clk 0:01:50.1]} 17. Bh4 {[%clk 0:00:37.4]} 17... g5 {[%clk 0:01:49.5]} 18.
Bxg5 {[%clk 0:00:38.1]} 18... hxg5 {[%clk 0:01:47.6]} 19. bxc5 {[%clk
0:00:39.1]} 19... Ng4 {[%clk 0:01:37.3]} 20. Qh3+ {[%clk 0:00:36.7]} 20... Nh6
{[%clk 0:01:38.2]} 21. Rxf8+ {[%clk 0:00:37.5]} 21... Qxf8 {[%clk 0:01:38.1]}
22. Qh5 {[%clk 0:00:34.6]} 22... Bxd4+ {[%clk 0:01:37.7]} 23. Kh1 {[%clk
0:00:31]} 23... Bg4 {[%clk 0:01:12.9]} 24. Qg6 {[%clk 0:00:21.2]} 24... Qg7
{[%clk 0:01:10.2]} 25. Qxg7+ {[%clk 0:00:12.9]} 25... Bxg7 {[%clk 0:01:10.4]}
26. Rf1 {[%clk 0:00:06.9]} 26... Bxc3 {[%clk 0:01:10.9]} 27. h3 {[%clk
0:00:08.3]} 27... Bh5 {[%clk 0:01:11.3]} 28. g4 {[%clk 0:00:07.2]} 28... Bg6
{[%clk 0:01:11.8]} 29. Bd3 {[%clk 0:00:04.9]} 29... Kg7 {[%clk 0:01:11.2]} 30.
cxd6 {[%clk 0:00:03.7]} 30... cxd6 {[%clk 0:01:13.1]} 31. Rb1 {[%clk 0:00:04.7]}
31... b6 {[%clk 0:01:14]} 0-1

[Event "*** Titled Tuesday Blitz"]
[Site "Chess.com"]
[Date "2020.02.04"]
[Round "2"]
[White "Everyfishknows"]
[Black "mitrabhaa"]
[Result "0-1"]
[WhiteElo "2325"]
[BlackElo "2562"]
[TimeControl "180+2"]
[EndTime "13:23:32 PST"]
[Termination "mitrabhaa won by resignation"]

1. Nf3 {[%clk 0:03:01.9]} 1... d5 {[%clk 0:02:58.4]} 2. c4 {[%clk 0:02:59]} 2...
c6 {[%clk 0:02:59.6]} 3. d4 {[%clk 0:02:59.4]} 3... Nf6 {[%clk 0:03:00.3]} 4.
Qc2 {[%clk 0:02:59.4]} 4... g6 {[%clk 0:02:59.3]} 5. Bf4 {[%clk 0:02:59.1]} 5...
Bg7 {[%clk 0:02:59]} 6. e3 {[%clk 0:02:51.3]} 6... O-O {[%clk 0:02:57.9]} 7. Nc3
{[%clk 0:02:52.2]} 7... a5 {[%clk 0:02:55.3]} 8. Bd3 {[%clk 0:02:40.3]} 8... Na6
{[%clk 0:02:54.8]} 9. a3 {[%clk 0:02:40.5]} 9... Be6 {[%clk 0:02:50.9]} 10. c5
{[%clk 0:02:36.4]} 10... b5 {[%clk 0:02:35]} 11. cxb6 {[%clk 0:02:31.9]} 11...
Qxb6 {[%clk 0:02:32.2]} 12. Na4 {[%clk 0:02:29.1]} 12... Qb7 {[%clk 0:02:29.9]}
13. Rc1 {[%clk 0:02:17.8]} 13... Rfc8 {[%clk 0:02:27.2]} 14. Bxa6 {[%clk
0:01:23.4]} 14... Qxa6 {[%clk 0:02:25.4]} 15. Nc5 {[%clk 0:01:21.1]} 15... Qa7
{[%clk 0:02:26.7]} 16. Nxe6 {[%clk 0:01:19.9]} 16... fxe6 {[%clk 0:02:27]} 17.
Ng5 {[%clk 0:01:17.3]} 17... Qd7 {[%clk 0:02:23.5]} 18. h4 {[%clk 0:01:09.1]}
18... Nh5 {[%clk 0:02:16.5]} 19. Bh2 {[%clk 0:01:02.1]} 19... Bf6 {[%clk
0:02:03.5]} 20. g4 {[%clk 0:00:54.6]} 20... Ng7 {[%clk 0:02:03.7]} 21. f3 {[%clk
0:00:26.4]} 21... Ra6 {[%clk 0:01:45.2]} 22. O-O {[%clk 0:00:26.8]} 22... c5
{[%clk 0:01:43.7]} 23. dxc5 {[%clk 0:00:25.5]} 23... Qb5 {[%clk 0:01:41.4]} 24.
b3 {[%clk 0:00:18]} 24... Rac6 {[%clk 0:01:41.8]} 25. a4 {[%clk 0:00:19]} 25...
Qb4 {[%clk 0:01:42.3]} 26. Qd3 {[%clk 0:00:10.8]} 26... Rxc5 {[%clk 0:01:41.9]}
27. Rxc5 {[%clk 0:00:12.1]} 27... Rxc5 {[%clk 0:01:42.7]} 28. Rd1 {[%clk
0:00:09.7]} 28... h6 {[%clk 0:01:41.1]} 29. Nh3 {[%clk 0:00:04.4]} 29... g5
{[%clk 0:01:41.8]} 30. hxg5 {[%clk 0:00:04.5]} 30... hxg5 {[%clk 0:01:43]} 31.
Nf2 {[%clk 0:00:03]} 31... Rc3 {[%clk 0:01:41.8]} 32. Qg6 {[%clk 0:00:03.6]}
32... Qxb3 {[%clk 0:01:42.2]} 33. Bg3 {[%clk 0:00:02.6]} 33... Qc2 {[%clk
0:01:35.6]} 34. Kg2 {[%clk 0:00:03.4]} 34... Qxg6 {[%clk 0:01:36.2]} 0-1

[Event "*** Titled Tuesday Blitz"]
[Site "Chess.com"]
[Date "2020.02.04"]
[Round "2"]
[White "Simoncelli15"]
[Black "Keaton87"]
[Result "0-1"]
[WhiteElo "2325"]
[BlackElo "2558"]
[TimeControl "180+2"]
[EndTime "13:23:37 PST"]
[Termination "Keaton87 won by resignation"]

1. e4 {[%clk 0:03:01.9]} 1... c5 {[%clk 0:02:52.2]} 2. Nf3 {[%clk 0:03:02.3]}
2... d6 {[%clk 0:02:52.3]} 3. d4 {[%clk 0:03:02.4]} 3... Nf6 {[%clk 0:02:52.5]}
4. Nc3 {[%clk 0:03:03.2]} 4... cxd4 {[%clk 0:02:53.4]} 5. Nxd4 {[%clk
0:03:05.1]} 5... g6 {[%clk 0:02:54.1]} 6. Be3 {[%clk 0:03:05.4]} 6... Bg7 {[%clk
0:02:54.3]} 7. f3 {[%clk 0:03:06.9]} 7... O-O {[%clk 0:02:55.2]} 8. Qd2 {[%clk
0:03:07.7]} 8... Nc6 {[%clk 0:02:54.8]} 9. O-O-O {[%clk 0:03:09.2]} 9... d5
{[%clk 0:02:53.2]} 10. Nxc6 {[%clk 0:03:10.3]} 10... bxc6 {[%clk 0:02:53.8]} 11.
Bh6 {[%clk 0:03:11.7]} 11... Bxh6 {[%clk 0:02:50.6]} 12. Qxh6 {[%clk 0:03:13.6]}
12... Rb8 {[%clk 0:02:45.9]} 13. h4 {[%clk 0:02:46.9]} 13... Qa5 {[%clk
0:02:32.6]} 14. e5 {[%clk 0:02:37]} 14... Nh5 {[%clk 0:02:15.4]} 15. g4 {[%clk
0:02:17.1]} 15... Ng3 {[%clk 0:02:13.4]} 16. Rh3 {[%clk 0:01:45.9]} 16... Nxf1
{[%clk 0:02:13.7]} 17. Rxf1 {[%clk 0:01:45.8]} 17... f6 {[%clk 0:01:55.3]} 18.
Qe3 {[%clk 0:01:21.7]} 18... Ba6 {[%clk 0:01:47.1]} 19. Re1 {[%clk 0:01:19]}
19... Qb4 {[%clk 0:01:42]} 20. Nd1 {[%clk 0:01:14.3]} 20... d4 {[%clk
0:01:33.6]} 21. Qb3+ {[%clk 0:01:12.9]} 21... Qxb3 {[%clk 0:01:33.3]} 22. axb3
{[%clk 0:01:14.8]} 22... c5 {[%clk 0:01:30.2]} 23. exf6 {[%clk 0:01:05.2]} 23...
exf6 {[%clk 0:01:30.4]} 24. Re6 {[%clk 0:01:06.5]} 24... Bb7 {[%clk 0:01:29.2]}
25. Nf2 {[%clk 0:01:03.8]} 25... Rbe8 {[%clk 0:01:28]} 26. Rxe8 {[%clk
0:00:53.7]} 26... Rxe8 {[%clk 0:01:29.9]} 27. f4 {[%clk 0:00:51]} 27... Re2
{[%clk 0:01:00.3]} 28. Nd3 {[%clk 0:00:48.5]} 28... Be4 {[%clk 0:01:00.9]} 29.
Kd1 {[%clk 0:00:38]} 29... Rg2 {[%clk 0:00:56.1]} 30. g5 {[%clk 0:00:33.7]}
30... Bf5 {[%clk 0:00:50]} 31. Rh1 {[%clk 0:00:26.2]} 31... Kf7 {[%clk
0:00:49.5]} 32. Nxc5 {[%clk 0:00:26.2]} 32... Bxc2+ {[%clk 0:00:49.1]} 33. Ke1
{[%clk 0:00:26.3]} 33... d3 {[%clk 0:00:50.3]} 34. Ne4 {[%clk 0:00:27.4]} 34...
Re2+ {[%clk 0:00:48.8]} 35. Kf1 {[%clk 0:00:28.1]} 35... Rxe4 {[%clk 0:00:49.3]}
0-1

[Event "*** Titled Tuesday Blitz"]
[Site "Chess.com"]
[Date "2020.02.04"]
[Round "2"]
[White "2165149677570"]
[Black "PchelkinVK"]
[Result "0-1"]
[WhiteElo "2301"]
[BlackElo "2520"]
[TimeControl "180+2"]
[EndTime "13:23:38 PST"]
[Termination "PchelkinVK won by resignation"]

1. e4 {[%clk 0:03:01.9]} 1... e6 {[%clk 0:03:00.9]} 2. d4 {[%clk 0:03:02.8]}
2... d5 {[%clk 0:03:02.2]} 3. Nd2 {[%clk 0:03:04]} 3... c5 {[%clk 0:03:03]} 4.
exd5 {[%clk 0:03:05.1]} 4... Qxd5 {[%clk 0:03:04.9]} 5. Ngf3 {[%clk 0:03:06.6]}
5... cxd4 {[%clk 0:03:06.4]} 6. Bc4 {[%clk 0:03:08.2]} 6... Qd6 {[%clk
0:03:06.9]} 7. O-O {[%clk 0:03:08.9]} 7... Nf6 {[%clk 0:03:08.3]} 8. Nb3 {[%clk
0:03:10.4]} 8... Nc6 {[%clk 0:03:09.6]} 9. Nbxd4 {[%clk 0:03:12]} 9... Nxd4
{[%clk 0:03:11.5]} 10. Nxd4 {[%clk 0:03:13.6]} 10... Bd7 {[%clk 0:03:12.1]} 11.
c3 {[%clk 0:03:12.8]} 11... Qc7 {[%clk 0:03:13.5]} 12. Bb3 {[%clk 0:03:13.5]}
12... O-O-O {[%clk 0:03:14.8]} 13. Qf3 {[%clk 0:03:15]} 13... e5 {[%clk
0:03:12.6]} 14. Nc2 {[%clk 0:02:58.8]} 14... h5 {[%clk 0:02:41.6]} 15. Bg5
{[%clk 0:02:44.7]} 15... e4 {[%clk 0:02:24.5]} 16. Qg3 {[%clk 0:02:23.2]} 16...
Bd6 {[%clk 0:02:24.9]} 17. Qh4 {[%clk 0:02:24.2]} 17... Rdf8 {[%clk 0:01:27.5]}
18. Nb4 {[%clk 0:02:14.3]} 18... Be6 {[%clk 0:01:18.7]} 19. Bxe6+ {[%clk
0:01:33.9]} 19... fxe6 {[%clk 0:01:19.4]} 20. Nc2 {[%clk 0:01:08.4]} 20... Nh7
{[%clk 0:01:08.1]} 21. Nd4 {[%clk 0:01:01.3]} 21... Bxh2+ {[%clk 0:01:02.4]} 22.
Kh1 {[%clk 0:01:00]} 22... Qe5 {[%clk 0:00:59]} 23. Be7 {[%clk 0:00:24.6]} 23...
Bf4 {[%clk 0:00:49]} 24. Bxf8 {[%clk 0:00:23.9]} 24... Nxf8 {[%clk 0:00:50.9]}
25. Rae1 {[%clk 0:00:12.8]} 25... g5 {[%clk 0:00:48.3]} 26. Qh3 {[%clk
0:00:14.2]} 26... g4 {[%clk 0:00:45.9]} 27. Qh4 {[%clk 0:00:15.6]} 27... Ng6
{[%clk 0:00:41.5]} 0-1